[Event "Early-Titled-Tuesday-Blitz-May-28-2024"]
[Site "Chess.com"]
[Date "2024.05.28"]
[Round "6"]
[White "BogdanDeac"]
[Black "Aygehovit1992"]
[Result "1-0"]
[WhiteElo "3121"]
[BlackElo "2821"]
[TimeControl "180+1"]
[EndTime "9:07:56 PDT"]
[Termination "BogdanDeac won by checkmate"]

1. e4 {[%clk 0:03:00.9]} 1... c5 {[%clk 0:03:00.6]} 2. Nf3 {[%clk 0:03:00.5]}
2... e6 {[%clk 0:03:01.1]} 3. h3 {[%clk 0:02:58.9]} 3... Nc6 {[%clk 0:03:00.1]}
4. Bb5 {[%clk 0:02:58]} 4... Nge7 {[%clk 0:02:59.1]} 5. O-O {[%clk 0:02:57.5]}
5... a6 {[%clk 0:02:59.4]} 6. Be2 {[%clk 0:02:57.6]} 6... d5 {[%clk 0:02:56]} 7.
exd5 {[%clk 0:02:56]} 7... exd5 {[%clk 0:02:51.6]} 8. d4 {[%clk 0:02:50.8]} 8...
c4 {[%clk 0:02:50.6]} 9. b3 {[%clk 0:02:42.4]} 9... b5 {[%clk 0:02:50.4]} 10. a4
{[%clk 0:02:42.2]} 10... Bf5 {[%clk 0:02:40.1]} 11. Nh4 {[%clk 0:02:29.2]} 11...
Be6 {[%clk 0:02:38.6]} 12. Re1 {[%clk 0:01:54.1]} 12... g6 {[%clk 0:02:31.7]}
13. Nf3 {[%clk 0:00:59.7]} 13... Bg7 {[%clk 0:02:26.8]} 14. c3 {[%clk
0:00:59.5]} 14... O-O {[%clk 0:02:22.9]} 15. axb5 {[%clk 0:00:58.9]} 15... axb5
{[%clk 0:02:22.9]} 16. Rxa8 {[%clk 0:00:58.7]} 16... Qxa8 {[%clk 0:02:23.8]} 17.
Ba3 {[%clk 0:00:59.1]} 17... Re8 {[%clk 0:02:08.7]} 18. Bc5 {[%clk 0:00:58.7]}
18... Qa2 {[%clk 0:01:57.7]} 19. Nbd2 {[%clk 0:00:26.8]} 19... h6 {[%clk
0:01:45.8]} 20. Bf1 {[%clk 0:00:11.3]} 20... Qb2 {[%clk 0:01:28.5]} 21. Qa1
{[%clk 0:00:08.5]} 21... Qxa1 {[%clk 0:00:34.4]} 22. Rxa1 {[%clk 0:00:09.4]}
22... b4 {[%clk 0:00:34.8]} 23. cxb4 {[%clk 0:00:07.5]} 23... c3 {[%clk
0:00:35.7]} 24. Nb1 {[%clk 0:00:07.3]} 24... c2 {[%clk 0:00:31]} 25. Na3 {[%clk
0:00:07]} 25... Bf5 {[%clk 0:00:31.5]} 26. Rc1 {[%clk 0:00:04]} 26... Be4 {[%clk
0:00:14.8]} 27. Nxc2 {[%clk 0:00:04.2]} 27... Nf5 {[%clk 0:00:15.4]} 28. Bb5
{[%clk 0:00:03.9]} 28... Rc8 {[%clk 0:00:15]} 29. Bxc6 {[%clk 0:00:03.6]} 29...
Rxc6 {[%clk 0:00:15.9]} 30. b5 {[%clk 0:00:04.1]} 30... Rc8 {[%clk 0:00:14.9]}
31. b6 {[%clk 0:00:04.5]} 31... Bxf3 {[%clk 0:00:10.3]} 32. gxf3 {[%clk
0:00:04.6]} 32... Bxd4 {[%clk 0:00:02.7]} 33. Nxd4 {[%clk 0:00:04]} 33... Nxd4
{[%clk 0:00:02.7]} 34. b7 {[%clk 0:00:04.6]} 34... Nxf3+ {[%clk 0:00:03.2]} 35.
Kg2 {[%clk 0:00:04.9]} 35... Nh4+ {[%clk 0:00:03.6]} 36. Kf1 {[%clk 0:00:03.6]}
36... Rb8 {[%clk 0:00:03.6]} 37. Bd4 {[%clk 0:00:04.2]} 37... g5 {[%clk
0:00:01.5]} 38. Rc7 {[%clk 0:00:04.1]} 38... Kh7 {[%clk 0:00:01.1]} 39. Ba7
{[%clk 0:00:03.6]} 39... Rxb7 {[%clk 0:00:01.1]} 40. Rxb7 {[%clk 0:00:04]} 40...
Kg6 {[%clk 0:00:02]} 41. Bc5 {[%clk 0:00:04.4]} 41... f5 {[%clk 0:00:01.6]} 42.
Be3 {[%clk 0:00:05.2]} 42... f4 {[%clk 0:00:01.8]} 43. Bc1 {[%clk 0:00:05.8]}
43... Nf3 {[%clk 0:00:02]} 44. b4 {[%clk 0:00:06.4]} 44... d4 {[%clk 0:00:02.3]}
45. b5 {[%clk 0:00:06.5]} 45... d3 {[%clk 0:00:02.9]} 46. Rd7 {[%clk 0:00:06.9]}
46... Ne5 {[%clk 0:00:03.1]} 47. Rd5 {[%clk 0:00:07]} 47... Kf5 {[%clk
0:00:02.9]} 48. b6 {[%clk 0:00:07.3]} 48... Ke4 {[%clk 0:00:03]} 49. Rxe5+
{[%clk 0:00:07.6]} 49... Kxe5 {[%clk 0:00:03.9]} 50. b7 {[%clk 0:00:08.3]} 50...
Ke4 {[%clk 0:00:04.4]} 51. b8=Q {[%clk 0:00:09.2]} 51... Kf3 {[%clk 0:00:03.9]}
52. Qb7# {[%clk 0:00:09.2]} 1-0

[Event "Early-Titled-Tuesday-Blitz-May-28-2024"]
[Site "Chess.com"]
[Date "2024.05.28"]
[Round "6"]
[White "BardArtem"]
[Black "Shushik"]
[Result "1-0"]
[WhiteElo "2803"]
[BlackElo "2561"]
[TimeControl "180+1"]
[EndTime "9:07:57 PDT"]
[Termination "BardArtem won by resignation"]

1. Nf3 {[%clk 0:02:45.6]} 1... Nf6 {[%clk 0:02:59.3]} 2. b3 {[%clk 0:02:44.5]}
2... d5 {[%clk 0:02:58.7]} 3. Bb2 {[%clk 0:02:40.6]} 3... e6 {[%clk 0:02:59.1]}
4. e3 {[%clk 0:02:39.5]} 4... Bd6 {[%clk 0:02:58.8]} 5. c4 {[%clk 0:02:39.6]}
5... b6 {[%clk 0:02:58.7]} 6. Nc3 {[%clk 0:02:39.6]} 6... Bb7 {[%clk 0:02:58.7]}
7. cxd5 {[%clk 0:02:40]} 7... exd5 {[%clk 0:02:58.3]} 8. Rc1 {[%clk 0:02:40.5]}
8... a6 {[%clk 0:02:58.2]} 9. Ne2 {[%clk 0:02:39.3]} 9... Nbd7 {[%clk
0:02:56.5]} 10. Ng3 {[%clk 0:02:37.7]} 10... g6 {[%clk 0:02:43.6]} 11. Be2
{[%clk 0:02:26.1]} 11... O-O {[%clk 0:02:42.8]} 12. Qc2 {[%clk 0:02:23.4]} 12...
Qe7 {[%clk 0:02:35.3]} 13. Qb1 {[%clk 0:02:20.5]} 13... Ne5 {[%clk 0:02:30.8]}
14. Qa1 {[%clk 0:02:12.2]} 14... Nfd7 {[%clk 0:02:20.3]} 15. Nxe5 {[%clk
0:01:58.7]} 15... Nxe5 {[%clk 0:02:19.4]} 16. f4 {[%clk 0:01:50.2]} 16... Nd7
{[%clk 0:02:17.1]} 17. O-O {[%clk 0:01:48]} 17... Rac8 {[%clk 0:02:14.7]} 18.
Bf3 {[%clk 0:01:44.7]} 18... Ba3 {[%clk 0:02:11.1]} 19. Bxa3 {[%clk 0:01:39.9]}
19... Qxa3 {[%clk 0:02:11]} 20. Bg4 {[%clk 0:01:40.4]} 20... Qd6 {[%clk
0:02:04.3]} 21. Bxd7 {[%clk 0:01:34.5]} 21... Qxd7 {[%clk 0:02:04.4]} 22. f5
{[%clk 0:01:26.6]} 22... Rfe8 {[%clk 0:01:53.1]} 23. fxg6 {[%clk 0:01:18]} 23...
hxg6 {[%clk 0:01:53.3]} 24. Rf4 {[%clk 0:01:07.1]} 24... Qd6 {[%clk 0:01:41.6]}
25. Rcf1 {[%clk 0:00:45.3]} 25... Re7 {[%clk 0:01:41.3]} 26. Rh4 {[%clk
0:00:41.9]} 26... Qe5 {[%clk 0:01:39.4]} 27. Qd1 {[%clk 0:00:37.7]} 27... Rd8
{[%clk 0:01:01.4]} 28. Qg4 {[%clk 0:00:20.5]} 28... Bc8 {[%clk 0:01:01]} 29. Qf3
{[%clk 0:00:19]} 29... Qg7 {[%clk 0:00:54]} 30. Ne2 {[%clk 0:00:09.8]} 30... c5
{[%clk 0:00:47.2]} 31. Nf4 {[%clk 0:00:07.2]} 31... d4 {[%clk 0:00:46.2]} 32.
Nd5 {[%clk 0:00:07.1]} 32... Re5 {[%clk 0:00:37.3]} 33. Nf6+ {[%clk 0:00:06.7]}
33... Kf8 {[%clk 0:00:36.7]} 34. Rh7 {[%clk 0:00:07.1]} 34... Rf5 {[%clk
0:00:28.6]} 35. Rxg7 {[%clk 0:00:07.4]} 35... Kxg7 {[%clk 0:00:28.2]} 36. Qg3
{[%clk 0:00:04.9]} 36... Rxf1+ {[%clk 0:00:21.8]} 37. Kxf1 {[%clk 0:00:05.8]}
37... Kxf6 {[%clk 0:00:22.4]} 38. Qc7 {[%clk 0:00:04.9]} 38... Rh8 {[%clk
0:00:16.1]} 39. Qxb6+ {[%clk 0:00:04.5]} 39... Kg7 {[%clk 0:00:16.4]} 40. Qxc5
{[%clk 0:00:04.2]} 40... Bf5 {[%clk 0:00:12.8]} 41. Qxd4+ {[%clk 0:00:04]} 41...
f6 {[%clk 0:00:13.3]} 42. h3 {[%clk 0:00:03.5]} 42... Rc8 {[%clk 0:00:12.5]} 43.
Kg1 {[%clk 0:00:03.2]} 43... Rc2 {[%clk 0:00:09.5]} 44. g4 {[%clk 0:00:02.8]}
44... Rc1+ {[%clk 0:00:09.9]} 45. Kf2 {[%clk 0:00:02.7]} 45... Be6 {[%clk
0:00:09.5]} 46. g5 {[%clk 0:00:03.1]} 1-0

[Event "Early-Titled-Tuesday-Blitz-May-28-2024"]
[Site "Chess.com"]
[Date "2024.05.28"]
[Round "6"]
[White "Massakru"]
[Black "rollercoaster29"]
[Result "0-1"]
[WhiteElo "2370"]
[BlackElo "2542"]
[TimeControl "180+1"]
[EndTime "9:07:57 PDT"]
[Termination "rollercoaster29 won by resignation"]

1. e4 {[%clk 0:03:00.9]} 1... e5 {[%clk 0:02:52.1]} 2. Nf3 {[%clk 0:03:00.1]}
2... Nc6 {[%clk 0:02:50.9]} 3. d4 {[%clk 0:03:00.2]} 3... exd4 {[%clk
0:02:49.3]} 4. Nxd4 {[%clk 0:03:01.1]} 4... Bc5 {[%clk 0:02:47.3]} 5. Nb3 {[%clk
0:03:01.2]} 5... Bb6 {[%clk 0:02:47.1]} 6. Nc3 {[%clk 0:03:01.7]} 6... Nge7
{[%clk 0:02:46.4]} 7. Qe2 {[%clk 0:03:01.6]} 7... O-O {[%clk 0:02:45.5]} 8. Bg5
{[%clk 0:02:56.7]} 8... f6 {[%clk 0:02:43.7]} 9. Bh4 {[%clk 0:02:55.7]} 9... d6
{[%clk 0:02:41.6]} 10. O-O-O {[%clk 0:02:54]} 10... Be6 {[%clk 0:02:40.3]} 11.
f4 {[%clk 0:02:50]} 11... a5 {[%clk 0:02:36.3]} 12. a3 {[%clk 0:02:38.8]} 12...
a4 {[%clk 0:02:27.8]} 13. Nd2 {[%clk 0:02:38.2]} 13... Ba5 {[%clk 0:02:27.4]}
14. Qd3 {[%clk 0:02:25.2]} 14... Qe8 {[%clk 0:02:11.8]} 15. Nc4 {[%clk 0:02:23]}
15... Qf7 {[%clk 0:02:02.4]} 16. Nxa5 {[%clk 0:02:21.2]} 16... Nxa5 {[%clk
0:02:02]} 17. Nb5 {[%clk 0:02:12.9]} 17... Nec6 {[%clk 0:01:51.6]} 18. Qc3
{[%clk 0:02:01.4]} 18... Bc4 {[%clk 0:01:31.8]} 19. Nxc7 {[%clk 0:01:49.2]}
19... Rac8 {[%clk 0:01:20.6]} 20. Nd5 {[%clk 0:01:47.5]} 20... Bxd5 {[%clk
0:01:02.5]} 21. Rxd5 {[%clk 0:01:41.5]} 21... Nb3+ {[%clk 0:00:52.9]} 22. cxb3
{[%clk 0:01:34.5]} 22... Nb4 {[%clk 0:00:33]} 23. axb4 {[%clk 0:01:06.7]} 23...
Rxc3+ {[%clk 0:00:32.8]} 24. bxc3 {[%clk 0:01:07.3]} 24... a3 {[%clk 0:00:33.3]}
25. Bc4 {[%clk 0:01:05.6]} 25... Kh8 {[%clk 0:00:32.9]} 26. Rxd6 {[%clk
0:00:56.8]} 26... Qc7 {[%clk 0:00:22.3]} 27. Rhd1 {[%clk 0:00:48.4]} 27... b5
{[%clk 0:00:21.2]} 28. Rd7 {[%clk 0:00:45.1]} 28... Qc8 {[%clk 0:00:20.4]} 29.
R1d4 {[%clk 0:00:15.5]} 29... bxc4 {[%clk 0:00:20.4]} 30. bxc4 {[%clk
0:00:15.9]} 30... Qa6 {[%clk 0:00:16.8]} 31. Kb1 {[%clk 0:00:15]} 31... Qa4
{[%clk 0:00:16]} 32. Rd8 {[%clk 0:00:12.9]} 32... Kg8 {[%clk 0:00:15]} 33. e5
{[%clk 0:00:07.8]} 33... Qb3+ {[%clk 0:00:15]} 34. Kc1 {[%clk 0:00:08.3]} 34...
Qb2+ {[%clk 0:00:15.2]} 35. Kd1 {[%clk 0:00:08.1]} 35... a2 {[%clk 0:00:15.7]}
36. Rxf8+ {[%clk 0:00:04.3]} 36... Kxf8 {[%clk 0:00:16.6]} 37. Rd8+ {[%clk
0:00:03.7]} 37... Ke7 {[%clk 0:00:16.5]} 38. Ra8 {[%clk 0:00:03.6]} 38... a1=Q+
{[%clk 0:00:15.9]} 39. Rxa1 {[%clk 0:00:04.2]} 39... Qxa1+ {[%clk 0:00:16.8]}
40. Kc2 {[%clk 0:00:05]} 40... Qa2+ {[%clk 0:00:16.3]} 41. Kd3 {[%clk
0:00:05.3]} 41... Qxg2 {[%clk 0:00:17]} 42. exf6+ {[%clk 0:00:05.4]} 42... gxf6
{[%clk 0:00:17.9]} 43. Bg3 {[%clk 0:00:04.8]} 43... Qf3+ {[%clk 0:00:17.8]} 44.
Kd4 {[%clk 0:00:05.1]} 44... Kd6 {[%clk 0:00:15]} 45. c5+ {[%clk 0:00:05.1]}
45... Kc6 {[%clk 0:00:14.9]} 46. c4 {[%clk 0:00:05]} 46... Qd1+ {[%clk
0:00:14.7]} 47. Kc3 {[%clk 0:00:04.7]} 47... Qc1+ {[%clk 0:00:14.6]} 48. Kd3
{[%clk 0:00:02.8]} 48... Qa3+ {[%clk 0:00:14]} 49. Kd4 {[%clk 0:00:02.5]} 49...
Qxb4 {[%clk 0:00:13.9]} 50. f5 {[%clk 0:00:02.5]} 50... Qxc5+ {[%clk 0:00:14.2]}
51. Kd3 {[%clk 0:00:02.9]} 51... Qxf5+ {[%clk 0:00:14.3]} 0-1

[Event "Early-Titled-Tuesday-Blitz-May-28-2024"]
[Site "Chess.com"]
[Date "2024.05.28"]
[Round "6"]
[White "Tagir45"]
[Black "FlemingA"]
[Result "1-0"]
[WhiteElo "2635"]
[BlackElo "2474"]
[TimeControl "180+1"]
[EndTime "9:07:58 PDT"]
[Termination "Tagir45 won by checkmate"]

1. e4 {[%clk 0:03:00.9]} 1... Nc6 {[%clk 0:02:52.8]} 2. Nf3 {[%clk 0:02:57.9]}
2... g6 {[%clk 0:02:51.1]} 3. d4 {[%clk 0:02:54.4]} 3... d6 {[%clk 0:02:51.4]}
4. c4 {[%clk 0:02:51.2]} 4... Bg7 {[%clk 0:02:50.7]} 5. Nc3 {[%clk 0:02:51]}
5... e5 {[%clk 0:02:47]} 6. d5 {[%clk 0:02:49.8]} 6... Nd4 {[%clk 0:02:47.2]} 7.
Nxd4 {[%clk 0:02:41.3]} 7... exd4 {[%clk 0:02:48.1]} 8. Nb5 {[%clk 0:02:35.1]}
8... Qe7 {[%clk 0:02:33.8]} 9. f3 {[%clk 0:02:30.3]} 9... f5 {[%clk 0:02:31]}
10. Nxd4 {[%clk 0:01:49.5]} 10... fxe4 {[%clk 0:02:28.3]} 11. f4 {[%clk
0:01:48.7]} 11... Nf6 {[%clk 0:02:23.5]} 12. Be2 {[%clk 0:01:46.6]} 12... O-O
{[%clk 0:02:23.4]} 13. O-O {[%clk 0:01:45.4]} 13... Bd7 {[%clk 0:02:16.8]} 14.
f5 {[%clk 0:01:39.5]} 14... gxf5 {[%clk 0:01:48.4]} 15. Nxf5 {[%clk 0:01:40.4]}
15... Bxf5 {[%clk 0:01:49.3]} 16. Rxf5 {[%clk 0:01:40.6]} 16... Nd7 {[%clk
0:01:47.1]} 17. Rxf8+ {[%clk 0:01:18.4]} 17... Rxf8 {[%clk 0:01:46.5]} 18. Be3
{[%clk 0:01:14.8]} 18... Ne5 {[%clk 0:01:43]} 19. Qc2 {[%clk 0:00:59.1]} 19...
Ng6 {[%clk 0:01:30.2]} 20. g3 {[%clk 0:00:53.9]} 20... Qe5 {[%clk 0:01:23.5]}
21. Rf1 {[%clk 0:00:40.8]} 21... Rxf1+ {[%clk 0:01:05.3]} 22. Bxf1 {[%clk
0:00:40.2]} 22... Qxb2 {[%clk 0:01:01]} 23. Qxe4 {[%clk 0:00:40]} 23... Qe5
{[%clk 0:00:56.8]} 24. Qd3 {[%clk 0:00:31.7]} 24... Qc3 {[%clk 0:00:52.1]} 25.
Qxc3 {[%clk 0:00:28.6]} 25... Bxc3 {[%clk 0:00:53]} 26. Kf2 {[%clk 0:00:28.3]}
26... Ne5 {[%clk 0:00:52.5]} 27. Be2 {[%clk 0:00:25.8]} 27... Ba5 {[%clk
0:00:50.4]} 28. c5 {[%clk 0:00:18]} 28... dxc5 {[%clk 0:00:35.8]} 29. Bxc5
{[%clk 0:00:18.9]} 29... Bb6 {[%clk 0:00:34.9]} 30. Bxb6 {[%clk 0:00:19.1]}
30... axb6 {[%clk 0:00:35.8]} 31. Ke3 {[%clk 0:00:19.7]} 31... Kf8 {[%clk
0:00:28.9]} 32. Ke4 {[%clk 0:00:18.4]} 32... Nf7 {[%clk 0:00:23.9]} 33. Kf5
{[%clk 0:00:16.5]} 33... Ke7 {[%clk 0:00:24.3]} 34. h4 {[%clk 0:00:15.7]} 34...
Kd6 {[%clk 0:00:22]} 35. Kf6 {[%clk 0:00:15.2]} 35... Ne5 {[%clk 0:00:18.4]} 36.
Kg7 {[%clk 0:00:14.8]} 36... Kxd5 {[%clk 0:00:18.6]} 37. Kxh7 {[%clk 0:00:14.9]}
37... c5 {[%clk 0:00:19.3]} 38. h5 {[%clk 0:00:14.5]} 38... c4 {[%clk
0:00:19.5]} 39. h6 {[%clk 0:00:14.7]} 39... c3 {[%clk 0:00:19.7]} 40. Bd1 {[%clk
0:00:15.1]} 40... Nf7 {[%clk 0:00:04.4]} 41. Kg7 {[%clk 0:00:14.2]} 41... Nxh6
{[%clk 0:00:04.7]} 42. Kxh6 {[%clk 0:00:14.8]} 42... Ke5 {[%clk 0:00:05.1]} 43.
g4 {[%clk 0:00:15]} 43... Kf4 {[%clk 0:00:05.1]} 44. g5 {[%clk 0:00:15.2]} 44...
Kf5 {[%clk 0:00:06]} 45. g6 {[%clk 0:00:15.5]} 45... Kf6 {[%clk 0:00:06.9]} 46.
g7 {[%clk 0:00:15.7]} 46... Kf7 {[%clk 0:00:07.8]} 47. Bb3+ {[%clk 0:00:15.6]}
47... Kf6 {[%clk 0:00:07.7]} 48. g8=Q {[%clk 0:00:16.5]} 48... Ke5 {[%clk
0:00:08.6]} 49. Kg5 {[%clk 0:00:14]} 49... Kd4 {[%clk 0:00:08.7]} 50. Kf4 {[%clk
0:00:13.3]} 50... Kd3 {[%clk 0:00:09]} 51. Qd5+ {[%clk 0:00:13.3]} 51... Ke2
{[%clk 0:00:08.9]} 52. Bc4+ {[%clk 0:00:12.3]} 52... Kf2 {[%clk 0:00:09.8]} 53.
Qf3+ {[%clk 0:00:11.3]} 53... Ke1 {[%clk 0:00:10.7]} 54. Qe2# {[%clk 0:00:11]}
1-0

[Event "Early-Titled-Tuesday-Blitz-May-28-2024"]
[Site "Chess.com"]
[Date "2024.05.28"]
[Round "6"]
[White "xasid81"]
[Black "artin10862"]
[Result "1-0"]
[WhiteElo "2590"]
[BlackElo "3043"]
[TimeControl "180+1"]
[EndTime "9:08:01 PDT"]
[Termination "xasid81 won by resignation"]

1. d4 {[%clk 0:03:00.9]} 1... Nf6 {[%clk 0:02:40.6]} 2. Nf3 {[%clk 0:03:00.2]}
2... d5 {[%clk 0:02:40.4]} 3. c3 {[%clk 0:02:58.9]} 3... c6 {[%clk 0:02:38.7]}
4. Bf4 {[%clk 0:02:55.8]} 4... Bg4 {[%clk 0:02:32.9]} 5. Nbd2 {[%clk 0:02:54.7]}
5... e6 {[%clk 0:02:32.6]} 6. Ne5 {[%clk 0:02:52.7]} 6... Bf5 {[%clk 0:02:11.3]}
7. e3 {[%clk 0:02:50.1]} 7... h6 {[%clk 0:02:11.1]} 8. Bd3 {[%clk 0:02:48.8]}
8... Bxd3 {[%clk 0:02:09.2]} 9. Nxd3 {[%clk 0:02:49.7]} 9... Nbd7 {[%clk
0:02:09.5]} 10. O-O {[%clk 0:02:45.8]} 10... Be7 {[%clk 0:02:07.2]} 11. Qe2
{[%clk 0:02:45.5]} 11... O-O {[%clk 0:01:53.3]} 12. e4 {[%clk 0:02:45.5]} 12...
a5 {[%clk 0:01:48.6]} 13. h3 {[%clk 0:02:41.9]} 13... a4 {[%clk 0:01:18.1]} 14.
a3 {[%clk 0:02:39.5]} 14... c5 {[%clk 0:01:16.7]} 15. e5 {[%clk 0:02:22.8]}
15... Ne8 {[%clk 0:01:16.1]} 16. c4 {[%clk 0:02:21.8]} 16... dxc4 {[%clk
0:01:11.1]} 17. Nxc4 {[%clk 0:02:22.7]} 17... cxd4 {[%clk 0:01:12]} 18. Qe4
{[%clk 0:02:18.6]} 18... Nb6 {[%clk 0:01:11.9]} 19. Rac1 {[%clk 0:02:10.3]}
19... Nd5 {[%clk 0:01:06.3]} 20. Rfd1 {[%clk 0:02:03.8]} 20... b5 {[%clk
0:01:01.8]} 21. Nd2 {[%clk 0:01:58.5]} 21... Nxf4 {[%clk 0:00:54.7]} 22. Nxf4
{[%clk 0:01:57.3]} 22... g5 {[%clk 0:00:43.9]} 23. Nh5 {[%clk 0:01:47.6]} 23...
Ng7 {[%clk 0:00:42.9]} 24. Nxg7 {[%clk 0:01:45.9]} 24... Kxg7 {[%clk 0:00:43]}
25. Nf3 {[%clk 0:01:45.9]} 25... Qb6 {[%clk 0:00:41.8]} 26. Qxd4 {[%clk
0:01:37.5]} 26... Qxd4 {[%clk 0:00:36.8]} 27. Nxd4 {[%clk 0:01:38.4]} 27... Rfb8
{[%clk 0:00:34.1]} 28. Rc7 {[%clk 0:01:35.4]} 28... Kf8 {[%clk 0:00:28]} 29. Nc6
{[%clk 0:01:28.2]} 29... Rc8 {[%clk 0:00:27.8]} 30. Rxe7 {[%clk 0:01:26.8]}
30... Rxc6 {[%clk 0:00:27.6]} 31. Rdd7 {[%clk 0:01:27.4]} 31... Rac8 {[%clk
0:00:04.8]} 32. Rxf7+ {[%clk 0:01:26.3]} 32... Ke8 {[%clk 0:00:05.5]} 33. Rde7+
{[%clk 0:01:24.4]} 33... Kd8 {[%clk 0:00:05.6]} 34. Rb7 {[%clk 0:01:20.8]} 34...
R8c7 {[%clk 0:00:05.2]} 35. Rfxc7 {[%clk 0:01:16.2]} 35... Rxc7 {[%clk
0:00:05.2]} 36. Rxb5 {[%clk 0:00:57.2]} 36... Rc2 {[%clk 0:00:04.8]} 37. g3
{[%clk 0:00:51.1]} 37... Ke7 {[%clk 0:00:04]} 38. Kg2 {[%clk 0:00:51.4]} 38...
Kf7 {[%clk 0:00:03.5]} 39. Rb4 {[%clk 0:00:50.9]} 39... Kg6 {[%clk 0:00:04.1]}
40. Rxa4 {[%clk 0:00:47.6]} 40... Rxb2 {[%clk 0:00:04.2]} 41. Re4 {[%clk
0:00:43.2]} 41... Kf5 {[%clk 0:00:04.5]} 42. Re3 {[%clk 0:00:43.5]} 42... h5
{[%clk 0:00:04.2]} 43. Re1 {[%clk 0:00:29.9]} 43... Ra2 {[%clk 0:00:03.4]} 44.
Re3 {[%clk 0:00:27.7]} 44... Rb2 {[%clk 0:00:03.6]} 45. Kf3 {[%clk 0:00:22.6]}
45... g4+ {[%clk 0:00:02]} 46. hxg4+ {[%clk 0:00:23.5]} 46... hxg4+ {[%clk
0:00:02.9]} 47. Kg2 {[%clk 0:00:24.1]} 47... Ra2 {[%clk 0:00:03.8]} 48. Kf1
{[%clk 0:00:22.8]} 48... Rb2 {[%clk 0:00:04.2]} 49. Ke1 {[%clk 0:00:22.8]} 49...
Ra2 {[%clk 0:00:04.9]} 50. Kf1 {[%clk 0:00:18.7]} 50... Rb2 {[%clk 0:00:05.1]}
51. Re2 {[%clk 0:00:17]} 51... Rb1+ {[%clk 0:00:03.5]} 52. Re1 {[%clk
0:00:17.4]} 52... Ra1 {[%clk 0:00:04.2]} 53. Rxa1 {[%clk 0:00:16.6]} 1-0

[Event "Early-Titled-Tuesday-Blitz-May-28-2024"]
[Site "Chess.com"]
[Date "2024.05.28"]
[Round "6"]
[White "nabukatnezarr"]
[Black "MathiasWomacka"]
[Result "1-0"]
[WhiteElo "2663"]
[BlackElo "2519"]
[TimeControl "180+1"]
[EndTime "9:08:02 PDT"]
[Termination "nabukatnezarr won on time"]

1. b3 {[%clk 0:03:00.9]} 1... e5 {[%clk 0:02:58.8]} 2. Bb2 {[%clk 0:03:01.8]}
2... Nc6 {[%clk 0:02:58.4]} 3. e3 {[%clk 0:03:02.1]} 3... Nf6 {[%clk 0:02:57]}
4. Bb5 {[%clk 0:03:02.6]} 4... Bd6 {[%clk 0:02:56.8]} 5. d3 {[%clk 0:03:01.5]}
5... Ne7 {[%clk 0:02:50.1]} 6. d4 {[%clk 0:02:55.1]} 6... e4 {[%clk 0:02:43.3]}
7. Nd2 {[%clk 0:02:44.7]} 7... c6 {[%clk 0:02:42]} 8. Be2 {[%clk 0:02:29.2]}
8... Bc7 {[%clk 0:02:41.7]} 9. c4 {[%clk 0:02:30]} 9... d5 {[%clk 0:02:41.3]}
10. Nh3 {[%clk 0:02:16.2]} 10... Bxh3 {[%clk 0:02:30.2]} 11. gxh3 {[%clk
0:02:16]} 11... Nf5 {[%clk 0:02:20.4]} 12. Qc2 {[%clk 0:02:10.7]} 12... O-O
{[%clk 0:02:11.3]} 13. O-O-O {[%clk 0:02:10.5]} 13... b5 {[%clk 0:01:59.2]} 14.
c5 {[%clk 0:01:49.2]} 14... Qb8 {[%clk 0:01:31.6]} 15. a3 {[%clk 0:01:45.5]}
15... Bxh2 {[%clk 0:01:30.3]} 16. Kb1 {[%clk 0:01:45.3]} 16... Bc7 {[%clk
0:01:29.5]} 17. h4 {[%clk 0:01:45.6]} 17... h5 {[%clk 0:01:24.5]} 18. Rdg1
{[%clk 0:01:45]} 18... g6 {[%clk 0:01:16]} 19. Rg5 {[%clk 0:01:45.3]} 19... Kh7
{[%clk 0:01:08.3]} 20. Qd1 {[%clk 0:01:43.1]} 20... Qd8 {[%clk 0:00:55.9]} 21.
Bxh5 {[%clk 0:01:41]} 21... Nxh5 {[%clk 0:00:53.7]} 22. Rxf5 {[%clk 0:01:38.2]}
22... Ng7 {[%clk 0:00:41.2]} 23. Rg5 {[%clk 0:01:37.9]} 23... Qf6 {[%clk
0:00:41.1]} 24. Qe2 {[%clk 0:01:34]} 24... Rh8 {[%clk 0:00:40.5]} 25. Rhg1
{[%clk 0:00:55.1]} 25... Kg8 {[%clk 0:00:19.1]} 26. R5g4 {[%clk 0:00:54]} 26...
Rh5 {[%clk 0:00:16.9]} 27. Ka2 {[%clk 0:00:53.9]} 27... Rxh4 {[%clk 0:00:16.3]}
28. Rxh4 {[%clk 0:00:52.9]} 28... Qxh4 {[%clk 0:00:17.2]} 29. f3 {[%clk
0:00:52]} 29... exf3 {[%clk 0:00:16.1]} 30. Qxf3 {[%clk 0:00:52.9]} 30... Re8
{[%clk 0:00:15.1]} 31. Rg4 {[%clk 0:00:50.3]} 31... Qe7 {[%clk 0:00:13.9]} 32.
e4 {[%clk 0:00:48.4]} 32... dxe4 {[%clk 0:00:13.4]} 33. Rxe4 {[%clk 0:00:44.1]}
33... Qd7 {[%clk 0:00:13.2]} 34. Rh4 {[%clk 0:00:37.6]} 34... Nf5 {[%clk
0:00:10.6]} 35. Rh1 {[%clk 0:00:30.1]} 35... Qd5 {[%clk 0:00:09.7]} 36. Qh3
{[%clk 0:00:30.1]} 36... Kf8 {[%clk 0:00:09.3]} 37. Qh8+ {[%clk 0:00:20.1]}
37... Ke7 {[%clk 0:00:09.4]} 38. Re1+ {[%clk 0:00:20.8]} 38... Qe6 {[%clk
0:00:06.2]} 39. Rxe6+ {[%clk 0:00:20.4]} 39... fxe6 {[%clk 0:00:07.1]} 40. Qh7+
{[%clk 0:00:20.4]} 40... Kd8 {[%clk 0:00:06.7]} 41. Ne4 {[%clk 0:00:20.7]} 41...
Ne7 {[%clk 0:00:05.5]} 42. Nd6 {[%clk 0:00:20]} 42... Rf8 {[%clk 0:00:03.1]} 43.
Nf7+ {[%clk 0:00:19]} 43... Ke8 {[%clk 0:00:02.7]} 44. Ne5 {[%clk 0:00:19.3]}
44... Rf2 {[%clk 0:00:01.1]} 45. Nxg6 {[%clk 0:00:18.4]} 45... Nxg6 {[%clk
0:00:01.1]} 46. Qxg6+ {[%clk 0:00:19.3]} 46... Ke7 {[%clk 0:00:01.6]} 47. Qg7+
{[%clk 0:00:19.3]} 47... Kd8 {[%clk 0:00:01.5]} 48. Qg5+ {[%clk 0:00:19]} 48...
Kd7 {[%clk 0:00:01.6]} 49. Qg7+ {[%clk 0:00:18.3]} 49... Kd8 {[%clk 0:00:01.4]}
50. Qg8+ {[%clk 0:00:18.3]} 50... Kd7 {[%clk 0:00:01.7]} 51. Qh7+ {[%clk
0:00:19]} 51... Kc8 {[%clk 0:00:01]} 52. Qh8+ {[%clk 0:00:18.8]} 52... Kd7
{[%clk 0:00:01.1]} 53. Qh7+ {[%clk 0:00:18.5]} 53... Kc8 {[%clk 0:00:01]} 54.
Qh4 {[%clk 0:00:19.4]} 54... Re2 {[%clk 0:00:00.7]} 55. Qe7 {[%clk 0:00:19.5]}
55... Kb7 {[%clk 0:00:00.5]} 56. Qd7 {[%clk 0:00:19.6]} 1-0